bitfinex/quotes_ETHUSD_20240925
["timestamp","ask_amount","ask_price","bid_price","bid_amount"]
[1727258753509,5.8100781,2620.8,2620.1,0.7656]
[1727258753510,0.06637996,2620.2,2620.1,0.7656]
[1727258753926,3.81622,2620.4,2620.1,0.7656]
[1727258754146,3.88288326,2620.2,2620.1,0.7656]
[1727258754370,3.8165,2620.2,2620.1,0.7656]
[1727258754505,3.88288655,2620.2,2620.1,0.7656]
[1727258755211,3.88288655,2620.2,2620.1,0.7956]
[1727258756220,0.06638655,2620.2,2620.1,0.7956]
[1727258756652,3.8163,2620.4,2620.1,0.7956]
[1727258756821,0.06607373,2620.2,2620.1,0.7956]
[1727258757026,3.8163,2620.4,2620.1,0.7956]
[1727258757292,0.06610025,2620.2,2620.1,0.7956]
[1727258757426,3.8163,2620.4,2620.1,0.7956]
[1727258757779,7.6326,2620.4,2620.1,0.7956]
[1727258757923,3.88245952,2620.3,2620.1,0.03]
[1727258760436,0.06609952,2620.3,2620.1,0.03]
[1727258760639,3.88245952,2620.3,2620.1,0.03]
[1727258761170,4.5995,2620.2,2620.1,0.03]
[1727258761338,3.8165,2620.2,2620.1,0.03]
[1727258761547,3.88283041,2620.2,2620.1,0.03]
[1727258762729,9.66885913,2620.2,2620.1,0.03]
[1727258762927,7.68103041,2620.2,2620.1,0.03]
[1727258763136,12.050245,2620.2,2620.1,0.03]
[1727258763541,11.500245,2620.2,2620.1,0.03]
[1727258763766,9.11485054,2620.2,2620.1,0.03]
[1727258764133,11.500245,2620.2,2620.1,0.03]
[1727258764335,9.11485054,2620.2,2620.1,0.03]
[1727258764575,11.500245,2620.2,2620.1,0.03]
[1727258764878,9.11485054,2620.2,2620.1,0.03]
[1727258766775,11.500245,2620.2,2620.1,0.03]
[1727258766942,9.11485054,2620.2,2620.1,0.03]
[1727258767461,11.1006301,2620.2,2620.1,0.03]
[1727258768045,10.70340038,2620.2,2620.1,0.03]
[1727258768433,7.70340038,2620.2,2620.1,0.03]
[1727258769577,10.70340038,2620.2,2620.1,0.03]
[1727258769882,10.30650823,2620.2,2620.1,0.03]
[1727258770064,10.30655609,2620.2,2620.1,0.03]
[1727258770241,5.07453596,2620.2,2620.1,0.03]
[1727258770442,3.88283041,2620.2,2620.1,0.03]
[1727258771790,0.06633041,2620.2,2620.1,0.03]
[1727258772277,3.81629,2620.4,2620.1,0.03]
[1727258772489,0.05672579,2620.2,2620.1,0.03]
[1727258772791,0.05661887,2620.2,2620.1,0.03]
[1727258772950,3.81623,2620.4,2620.1,0.03]
[1727258773154,3.87319785,2620.3,2620.1,0.03]
[1727258773353,0.05682785,2620.3,2620.1,0.03]
[1727258774997,7.63232,2620.5,2620.1,0.03]
[1727258775292,0.05721314,2620.4,2620.1,0.03]
[1727258775792,3.87343314,2620.4,2620.1,0.03]
[1727258775988,0.05721314,2620.4,2620.1,0.03]
[1727258776192,0.05721314,2620.4,2620.1,0.39967109]
[1727258776693,0.05721314,2620.4,2620.3,10.46706091]
[1727258777054,3.81534,2621.0,2620.4,0.7965]
[1727258777398,0.05158416,2620.9,2620.4,0.8265]
[1727258777556,3.81534,2621.0,2620.4,1.57486809]
[1727258777759,0.0515094,2620.9,2620.4,1.57486809]
[1727258778763,3.8670294,2620.9,2620.4,1.57486809]
[1727258778964,3.8670294,2620.9,2620.4,0.8265]
[1727258779362,3.81564,2620.8,2620.4,0.8265]
[1727258779575,0.05132688,2620.7,2620.4,0.8265]
[1727258779869,3.81564,2620.8,2620.4,0.8265]
[1727258780074,0.05133434,2620.6,2620.4,0.8265]
[1727258780381,0.05134723,2620.5,2620.4,0.8265]
[1727258780600,3.81564,2620.8,2620.4,0.8265]
[1727258780908,0.05152605,2620.5,2620.4,0.8265]
[1727258781121,3.81564,2620.8,2620.4,0.8265]
[1727258781331,3.81564,2620.8,2620.0,0.04]
[1727258781332,3.8112,2620.4,2620.0,0.04]
[1727258781611,8.00686911,2620.1,2620.0,0.04]
[1727258781772,9.2660272,2620.1,2620.0,0.04]
[1727258781973,11.3903002,2620.1,2620.0,0.04]
[1727258782178,11.44694508,2620.1,2620.0,0.04]
[1727258782380,13.42956107,2620.1,2620.0,0.04]
[1727258782581,11.70323167,2620.1,2620.0,0.04]
[1727258783800,11.30680224,2620.1,2620.0,0.04]
[1727258784119,10.91030845,2620.1,2620.0,0.04]
[1727258784613,10.91028587,2620.1,2620.0,0.04]
[1727258784988,10.09908587,2620.1,2620.0,0.04]
[1727258785190,6.86627736,2620.1,2620.0,0.04]
[1727258790032,0.04963736,2620.1,2620.0,0.04]
[1727258790199,3.86627736,2620.1,2620.0,0.04]
[1727258797497,0.04963736,2620.1,2620.0,0.04]
[1727258797790,3.86627736,2620.1,2620.0,0.04]
[1727258798423,0.04963736,2620.1,2620.0,0.04]
[1727258798930,3.81653,2620.2,2620.0,0.04]
[1727258799090,0.04906013,2620.1,2620.0,0.04]
[1727258801638,3.86570013,2620.1,2620.0,0.04]
[1727258803352,0.04906013,2620.1,2620.0,0.04]
[1727258803643,0.04851993,2620.1,2620.0,0.04]
[1727258804520,3.86515993,2620.1,2620.0,0.04]
[1727258804717,0.04851993,2620.1,2620.0,0.04]
[1727258804933,3.81651,2620.2,2620.0,0.04]
[1727258805131,0.04849943,2620.1,2620.0,0.04]
[1727258805425,3.86513943,2620.1,2620.0,0.04]
[1727258807056,3.86513943,2620.1,2620.0,0.821]
[1727258807619,3.86513943,2620.1,2620.0,0.04]
[1727258808752,0.04849943,2620.1,2620.0,0.04]
[1727258809626,3.86513943,2620.1,2620.0,0.04]
[1727258812877,0.04849943,2620.1,2620.0,0.04]
[1727258814045,3.86513943,2620.1,2620.0,0.04]
[1727258814442,0.04849943,2620.1,2620.0,0.04]
[1727258815760,3.81652,2620.2,2620.0,0.04]
[1727258815994,0.04593556,2620.1,2620.0,0.04]
[1727258816645,5.00566019,2620.6,2620.1,3.81657]
[1727258816845,3.81541,2621.0,2620.1,3.81657]
[1727258816846,3.81547,2621.0,2620.5,2.84081091]
[1727258817109,2.37308656,2621.2,2620.6,0.8086]
[1727258817110,3.81548,2620.9,2620.6,0.8086]
[1727258817264,3.81548,2620.9,2620.6,0.80763057]
[1727258817777,1.97657019,2621.2,2620.6,0.80763057]
[1727258817778,3.81536,2621.0,2620.6,0.80763057]
[1727258818165,3.81549,2620.9,2620.6,0.80763057]
[1727258818487,1.18967019,2621.2,2620.9,3.81535]
[1727258818689,3.81433,2621.7,2621.2,3.81501]
[1727258818850,3.81433,2621.7,2621.4,2.84081091]
[1727258819175,1.98572123,2622.0,2621.6,2.84081091]
[1727258819176,3.81391,2622.0,2621.6,2.84081091]
[1727258819366,4.59052,2622.1,2621.6,2.84081091]
[1727258819561,0.03683108,2621.9,2621.6,2.84081091]
[1727258819878,0.03683108,2621.9,2621.5,3.81454]
[1727258819879,3.81367,2622.2,2621.8,2.84081091]
[1727258820091,3.81367,2622.2,2621.6,2.84081091]
[1727258820262,0.0381009,2622.3,2621.8,2.84081091]
[1727258820791,0.0381009,2622.3,2622.0,2.84081091]
[1727258820997,0.0381009,2622.3,2621.7,7.48442091]
[1727258821558,0.0381009,2622.3,2621.9,2.84081091]
[1727258822081,0.0381009,2622.3,2622.2,6.65440091]
[1727258822249,0.0381009,2622.3,2622.2,3.67341091]
[1727258823191,0.0381009,2622.3,2622.2,7.48700091]
[1727258824279,0.0381009,2622.3,2622.2,8.11326735]
[1727258824450,0.0381009,2622.3,2622.2,8.03700091]
[1727258824645,0.0381009,2622.3,2622.2,11.03700091]
[1727258824855,0.0381009,2623.1,2623.0,3.63201091]
[1727258825162,0.0381009,2623.1,2623.0,7.44443091]
[1727258826149,0.0381009,2623.1,2623.0,10.44443091]
[1727258827299,0.0381009,2623.1,2623.0,10.99443091]
[1727258828585,0.0381009,2623.1,2623.0,10.44443091]
[1727258831213,0.0381009,2623.1,2623.0,7.60362]
[1727258831705,0.0381009,2623.1,2623.0,10.44443091]
[1727258832870,0.0381009,2623.1,2623.0,7.60362]
[1727258833278,0.0381009,2623.1,2623.0,8.15362]
[1727258833481,0.0381009,2623.1,2623.0,10.99443091]
[1727258834605,0.0381009,2623.9,2623.0,10.99443091]
[1727258834606,0.0381009,2623.9,2623.4,7.62357]
[1727258834794,0.0381009,2623.9,2623.4,7.62351]
[1727258835001,0.0381009,2623.9,2623.4,3.81175]
[1727258835923,0.0381009,2623.9,2623.3,3.81192]
[1727258836219,3.81126,2623.8,2623.4,3.81182]
[1727258838495,3.81126,2623.8,2623.2,6.65284091]
[1727258838729,3.81126,2623.8,2623.3,3.81189]
[1727258840206,0.0381009,2623.9,2623.4,3.81183]
[1727258840606,3.8492309,2623.9,2623.4,3.81183]
[1727258841002,0.0381009,2623.9,2623.5,3.81157]
[1727258841622,0.0381009,2623.9,2623.4,3.81183]
[1727258841623,3.8492509,2623.9,2623.4,3.81175]
[1727258843750,3.8492509,2623.9,2623.4,7.62352]
[1727258843928,3.8492509,2623.9,2623.4,3.81175]
[1727258844375,3.8492509,2623.9,2623.4,7.62348]
[1727258844584,3.8492509,2623.9,2623.6,3.81155]
[1727258844585,0.0381009,2623.9,2623.6,3.81155]
[1727258845056,0.0381009,2623.9,2623.5,4.5886]
[1727258845577,0.0381009,2623.9,2623.5,0.7769]
[1727258845751,0.0381009,2623.9,2623.5,4.58852]
[1727258846682,0.0381009,2623.9,2623.6,3.81147]
[1727258846985,0.0381009,2623.9,2623.8,3.59851091]
[1727258847287,0.0381009,2623.9,2623.7,7.62265]
[1727258847450,0.0381009,2623.9,2623.8,3.81126]
[1727258848342,0.0381009,2623.9,2623.7,3.8114]
[1727258848644,0.0381009,2623.9,2623.7,3.81133]
[1727258849283,0.0381009,2623.9,2623.7,7.62267]
[1727258849438,0.0381009,2623.9,2623.8,3.81126]
[1727258849872,0.0381009,2623.9,2623.8,6.65207091]
[1727258850392,0.0381009,2623.9,2623.8,6.72828888]
[1727258850678,0.0381009,2623.9,2623.8,6.65207091]
[1727258850879,0.0381009,2623.9,2623.8,6.7282877]
[1727258851068,0.0381009,2623.9,2623.8,6.72828775]
[1727258851375,0.0381009,2623.9,2623.8,3.81126]
[1727258851944,0.0381009,2623.9,2623.8,7.20207091]
[1727258852155,0.0381009,2623.9,2623.8,7.97057091]
[1727258854585,3.8481309,2624.7,2624.1,0.55]
[1727258854748,3.8481309,2624.7,2624.2,3.81061]
[1727258855290,0.0381009,2624.7,2624.3,3.81053]
[1727258856086,0.0381009,2624.7,2624.1,0.55]
[1727258856288,0.0381009,2624.7,2624.1,4.36073]
[1727258856586,0.0381009,2624.7,2624.1,4.33163]
[1727258857069,3.8480609,2624.7,2624.2,3.8106]
[1727258857782,3.8480609,2624.7,2624.3,0.7928]
[1727258858549,0.0381009,2624.7,2624.3,0.7928]
[1727258858850,3.8480609,2624.7,2624.3,0.7928]
[1727258859866,0.0381009,2624.7,2624.3,0.7928]
[1727258860195,3.81019,2624.6,2624.3,0.7928]
[1727258860489,3.81019,2624.6,2624.1,8.91908]
[1727258860691,7.62038,2624.6,2624.1,5.10833]
[1727258860884,3.81019,2624.6,2624.1,5.10833]
[1727258861089,3.81025,2624.5,2624.1,5.10833]
[1727258861491,3.81033,2624.5,2624.1,0.7767]
[1727258861688,3.81033,2624.5,2623.9,3.81101]
[1727258861689,4.62383,2624.5,2623.9,3.81101]
[1727258861891,3.81054,2624.3,2623.9,3.0]
[1727258862253,3.81054,2624.3,2623.9,6.81111]
[1727258862456,3.8104,2624.4,2623.9,6.81102]
[1727258862657,4.62381,2624.5,2624.0,3.81089]
[1727258862888,3.81017,2624.6,2624.1,3.81075]
[1727258863397,3.8481309,2624.7,2624.1,3.81075]
[1727258863398,0.0381009,2624.7,2624.3,0.7541]
[1727258863597,0.0381009,2624.7,2624.5,2.84081091]
[1727258863751,0.0381009,2624.7,2624.4,0.07619483]
[1727258865254,0.0381009,2624.7,2624.6,5.1752]
[1727258865456,4.6094,2625.3,2624.7,3.80992]
[1727258865457,3.80924,2625.2,2624.7,3.80992]
[1727258865657,3.80924,2625.2,2624.8,0.6250241]
[1727258865871,7.61899,2625.1,2624.6,0.8151]
[1727258866069,7.61899,2625.1,2624.7,0.62500493]
[1727258866289,3.80948,2625.1,2624.6,0.8151]
[1727258866493,3.80948,2625.1,2624.7,0.62486476]
[1727258866795,3.80948,2625.1,2624.6,4.70133022]
[1727258866955,3.80948,2625.1,2624.7,0.62485474]
[1727258867156,3.80948,2625.1,2624.6,4.70133022]
[1727258867700,4.60938,2625.3,2624.7,6.65076091]
[1727258867857,3.80917,2625.3,2624.8,0.62471324]
[1727258868058,3.80917,2625.3,2624.8,3.80973]
[1727258868259,3.80926,2625.2,2624.7,6.65067091]
[1727258868814,3.80926,2625.2,2624.7,3.80986]
[1727258869465,3.80917,2625.3,2624.7,3.80986]
[1727258869466,3.8094,2625.1,2624.7,3.80986]
[1727258870478,3.8094,2625.1,2624.6,7.62518]
[1727258870982,3.8094,2625.1,2624.6,3.8151]
[1727258871176,3.8094,2625.1,2624.7,3.80995]
[1727258871786,3.80953,2625.0,2624.6,3.8151]
[1727258872003,3.80968,2624.9,2624.6,3.8151]
[1727258872168,3.8094,2625.1,2624.6,3.8151]
[1727258872368,3.80963,2625.0,2624.6,3.8151]
[1727258873521,3.80931,2625.2,2624.7,3.80987]
[1727258873883,3.80938,2625.1,2624.7,3.80987]
[1727258874908,3.80938,2625.1,2624.6,7.62519]
[1727258876036,3.80925,2625.2,2624.8,3.8098]
[1727258876206,0.0381009,2625.4,2624.9,0.0761844]
[1727258876407,3.80911,2625.3,2624.9,0.0761844]
[1727258876728,7.61832,2625.3,2624.9,0.0761844]
[1727258877034,7.61832,2625.3,2624.8,3.80974]
[1727258877035,3.80911,2625.3,2624.8,3.88592293]
[1727258877330,3.80911,2625.3,2624.8,6.72667384]
[1727258877485,3.80911,2625.3,2624.9,3.80966]
[1727258877690,3.80911,2625.3,2624.9,3.88584294]
[1727258878002,3.80911,2625.3,2624.8,6.65049091]
[1727258878186,0.0381009,2625.4,2624.8,6.65049091]
[1727258878187,3.8470609,2625.4,2625.0,3.8094]
[1727258878386,3.8470609,2625.4,2624.9,4.63004]
[1727258878587,0.0381009,2625.4,2625.0,3.80949]
[1727258878885,0.0381009,2625.4,2625.0,3.88566881]
[1727258879341,0.0381009,2625.4,2625.0,3.80949]
[1727258879622,0.0381009,2625.4,2625.1,3.80929]
[1727258880831,0.0381009,2625.4,2625.1,3.80928]
[1727258880987,0.0381009,2625.4,2625.2,3.80921]
[1727258881410,0.0381009,2625.4,2625.3,3.88525573]
[1727258881610,0.0381009,2625.4,2625.3,4.64085573]
[1727258882322,0.0381009,2625.4,2625.3,5.19085573]
[1727258882685,0.0381009,2625.4,2625.3,8.11468]
[1727258886747,0.0381009,2625.4,2625.3,3.7556]
[1727258886954,0.0381009,2625.4,2625.3,0.7556]
[1727258887104,0.0381009,2625.4,2625.2,6.80921]
[1727258887105,0.0381009,2625.4,2625.2,3.0]
[1727258887740,0.0381009,2625.4,2625.2,6.80922]
[1727258888729,0.0381009,2625.4,2625.1,3.0]
[1727258889307,0.0381009,2625.4,2625.1,6.80931]
[1727258889847,0.0381009,2625.4,2625.2,3.80922]
[1727258890147,0.0381009,2625.4,2625.2,6.65003091]
[1727258890440,0.0381009,2625.4,2625.2,3.80922]
[1727258890843,3.80934,2625.2,2625.0,0.04]
[1727258891059,3.8471209,2625.4,2625.0,0.04]
[1727258891060,3.80915,2625.3,2625.0,0.04]
[1727258892107,3.8471209,2625.4,2625.0,0.04]
[1727258892314,3.80924,2625.2,2625.0,0.04]
[1727258892743,3.80937,2625.1,2625.0,0.04]
[1727258893312,7.42868091,2625.1,2625.0,0.04]
[1727258893815,11.6183511,2625.1,2625.0,0.04]
[1727258894149,12.01486747,2625.1,2625.0,0.04]
[1727258895440,12.4148847,2625.1,2625.0,0.04]
[1727258897052,12.41552414,2625.1,2625.0,0.04]
[1727258897415,8.78008309,2625.1,2625.0,0.04]
[1727258897609,8.78007033,2625.1,2625.0,0.04]
[1727258897816,4.58787,2625.1,2625.0,0.04]
[1727258905394,8.62088124,2625.1,2625.0,0.04]
[1727258906098,8.62147215,2625.1,2625.0,0.04]
[1727258906402,5.78066124,2625.1,2625.0,0.04]
[1727258907401,12.018344,2625.1,2625.0,0.04]
[1727258907717,10.42868091,2625.1,2625.0,0.04]
[1727258909905,12.41553763,2625.1,2625.0,0.04]
[1727258910102,12.41564507,2625.1,2625.0,0.04]
[1727258910404,10.42868091,2625.1,2625.0,0.04]
[1727258910563,10.42868091,2625.1,2623.4,0.7542]
[1727258910564,3.8117,2623.5,2623.4,0.7542]
[1727258910963,2.84081091,2623.8,2622.6,3.81296]
[1727258910964,3.81213,2623.2,2623.1,0.7542]
[1727258911165,3.81201,2623.3,2623.1,0.7542]
[1727258912215,0.817,2623.9,2623.1,0.7542]
[1727258912216,3.81166,2623.6,2623.1,0.7542]
[1727258912508,3.81129,2623.8,2623.2,2.91704295]
[1727258912818,3.81129,2623.8,2623.3,0.7614]
[1727258913163,3.81115,2623.9,2623.3,0.7614]
[1727258913368,3.81142,2623.7,2623.3,0.7614]
[1727258913871,3.8116,2623.6,2623.3,0.7614]
[1727258914420,3.81142,2623.7,2623.3,0.7614]
[1727258914700,3.81158,2623.6,2623.3,0.7614]
[1727258915108,3.8117,2623.5,2623.3,0.7614]
[1727258916072,3.81148,2623.7,2623.3,0.7614]
[1727258916286,3.81161,2623.6,2623.3,0.7614]
[1727258917708,3.81177,2623.5,2623.3,0.7614]
[1727258917909,3.81184,2623.4,2623.3,0.7614]
[1727258918583,3.81184,2623.4,2622.8,6.65341091]
[1727258918782,3.81185,2623.4,2623.0,0.7606]
[1727258919188,3.81184,2623.4,2623.0,0.7606]
[1727258919777,3.8117,2623.5,2623.0,0.7606]
[1727258920399,7.6235,2623.5,2623.0,0.7606]
[1727258920601,3.8117,2623.5,2623.0,0.7606]
[1727258920805,3.8117,2623.5,2623.1,0.07623846]
[1727258921515,3.81157,2623.6,2623.1,6.72924937]
[1727258921814,3.81157,2623.6,2623.1,2.91704937]
[1727258922015,3.81157,2623.6,2623.1,6.72930937]
[1727258923115,3.81157,2623.6,2623.2,0.8261]
[1727258924517,3.81148,2623.7,2623.2,4.63816]
[1727258924716,3.81148,2623.7,2623.2,4.71439375]
[1727258925986,7.62299,2623.7,2623.2,4.71439375]
[1727258926187,3.81148,2623.7,2623.2,4.71439375]
[1727258927117,7.46,2624.5,2623.2,4.71439375]
[1727258927118,3.81077,2624.2,2623.7,0.8284]
[1727258927322,3.81077,2624.2,2623.8,2.91703245]
[1727258927508,3.81069,2624.2,2623.8,2.91703245]
[1727258927879,3.81069,2624.2,2623.8,2.87703245]
[1727258928205,3.81049,2624.4,2623.8,3.88745154]
[1727258929625,3.81049,2624.4,2623.8,7.69862154]
[1727258929790,3.81049,2624.4,2623.9,6.65191091]
[1727258929999,3.81049,2624.4,2624.0,0.8105]
[1727258930723,3.81026,2624.5,2624.0,8.50847309]
[1727258930880,3.80997,2624.7,2624.1,2.91701777]
[1727258931084,3.81012,2624.6,2624.1,2.91701777]
[1727258931388,3.81012,2624.6,2624.1,6.72780777]
[1727258931875,3.81012,2624.6,2624.2,0.7558]
[1727258932692,3.80997,2624.7,2624.2,0.7558]
[1727258932897,3.81025,2624.5,2624.2,0.7558]
[1727258934214,7.62059,2624.5,2624.2,0.7558]
[1727258934387,3.81048,2624.4,2624.2,0.7558]
[1727258935713,3.81025,2624.5,2624.2,0.7558]
[1727258935888,3.81046,2624.4,2624.2,0.7558]
[1727258936922,3.81046,2624.4,2623.8,0.774]
[1727258936923,3.8107,2624.2,2623.8,0.774]
[1727258937423,3.8109,2624.1,2623.8,0.774]
[1727258938013,7.62182,2624.1,2623.8,0.774]
[1727258938186,7.62184,2624.1,2623.8,0.774]
[1727258938788,3.8109,2624.1,2623.8,0.774]
[1727258938987,3.811,2624.0,2623.8,0.774]
[1727258939302,3.8109,2624.1,2623.8,0.774]
[1727258939505,7.62186,2624.1,2623.8,0.774]
[1727258939711,7.62184,2624.1,2623.8,0.774]
[1727258940322,3.8109,2624.1,2623.8,0.774]
[1727258940520,3.81099,2624.0,2623.8,0.774]
[1727258940830,3.8109,2624.1,2623.8,0.774]
[1727258941936,7.62182,2624.1,2623.8,0.774]
[1727258942133,3.81098,2624.0,2623.8,0.774]
[1727258942451,3.81049,2624.4,2623.9,3.81102]
[1727258942605,3.81049,2624.4,2624.2,2.84081091]
[1727258942805,3.81025,2624.5,2624.2,2.84081091]
[1727258943008,3.81019,2624.6,2624.2,2.84081091]
[1727258944143,5.81709158,2625.2,2624.5,3.81014]
[1727258944310,7.61855,2625.2,2624.8,0.7929]
[1727258944511,8.4723309,2625.4,2624.8,0.7929]
[1727258944834,3.80924,2625.2,2624.8,0.7929]
[1727258945025,3.8471009,2625.4,2624.9,6.65046091]
[1727258945414,3.80917,2625.3,2624.9,2.84081091]
[1727258945610,0.0381009,2625.4,2624.9,2.84081091]
[1727258945921,3.8471209,2625.4,2624.9,6.65039091]
[1727258946107,0.0381009,2625.4,2625.0,3.80939]
[1727258946316,0.0381009,2625.4,2625.1,3.80937]
[1727258946537,0.0381009,2625.4,2625.0,3.80939]
[1727258946706,0.0381009,2625.4,2625.1,3.80936]
[1727258946906,0.0381009,2625.4,2625.3,0.776]
[1727258950774,0.0381009,2625.4,2625.1,0.7877]
[1727258960016,0.0381009,2625.4,2625.1,4.597]
[1727258960210,0.0381009,2625.4,2625.1,4.67317993]
[1727258960494,0.0381009,2625.4,2625.3,3.80908]
[1727258962854,0.0381009,2625.4,2625.3,4.43525041]
[1727258963012,0.0381009,2625.4,2625.3,5.23555041]
[1727258963749,0.0381009,2625.4,2625.3,5.15938]
[1727258965416,0.0381009,2625.4,2625.3,5.23554405]
[1727258966234,0.0381009,2625.4,2625.3,8.23554405]
[1727258966536,0.0381009,2625.4,2625.3,8.15938]
[1727258970205,0.038,2626.0,2625.9,4.60381]
[1727258971070,0.038,2626.0,2625.9,4.67996276]
[1727258971310,0.038,2626.0,2625.9,4.60381]
[1727258972666,0.038,2626.0,2625.9,4.67996275]
[1727258974536,0.038,2626.0,2625.9,5.22996275]
[1727258974892,0.038,2626.0,2625.9,8.22996275]
[1727258975135,0.038,2626.0,2625.9,8.15381]
[1727258978435,0.0381009,2626.2,2626.1,3.80792]
[1727258978731,0.0381009,2626.2,2626.1,11.04947098]
[1727258978896,0.0381009,2626.2,2626.1,10.97333091]
[1727258979096,0.0381009,2626.2,2626.1,8.13252]
[1727258985467,0.0381009,2626.2,2626.1,8.52210464]
[1727258986254,0.0381009,2626.2,2626.1,9.14531847]
[1727258986429,0.0001009,2626.2,2626.1,9.14531847]
[1727258986766,0.0001009,2626.2,2626.1,8.52210464]
[1727258988468,0.0001009,2626.2,2626.1,9.14547539]
[1727258992440,0.0001009,2626.2,2626.1,8.7559161]
[1727258993599,0.0001009,2626.2,2626.1,8.13252]
[1727258994595,0.0001009,2626.2,2626.0,3.84805]
[1727258994753,0.0001009,2626.2,2626.1,3.80792]
[1727258995653,0.0001009,2626.2,2626.0,0.11614635]
[1727258995990,0.0001009,2626.2,2626.1,6.80792]
[1727258996189,0.0001009,2626.2,2626.1,6.88406683]
[1727258996412,0.0001009,2626.2,2626.1,6.80792]
[1727258996896,0.0001009,2626.2,2626.1,3.80792]
[1727258999055,0.0001009,2626.2,2626.0,3.84805]
[1727258999995,0.0001009,2626.2,2626.1,3.88406812]
[1727259000750,0.0001009,2626.2,2626.1,3.80792]
[1727259001054,0.0001009,2626.2,2626.1,8.25756634]
[1727259001345,0.0001009,2626.2,2626.1,8.18142]
[1727259002351,0.0001009,2626.2,2626.1,3.0]
[1727259002497,0.0001009,2626.2,2626.0,3.84807]
[1727259002498,0.0001009,2626.2,2626.0,7.65604]
[1727259002842,0.0001009,2626.2,2626.1,3.80792]
[1727259005357,0.0001009,2626.2,2626.0,3.84806]
[1727259005855,0.0001009,2626.2,2626.1,3.80792]
[1727259006817,0.0001009,2626.2,2626.0,6.68887091]
[1727259007215,0.0001009,2626.2,2626.0,3.84797]
[1727259008060,0.0001009,2626.2,2626.1,6.64873091]
[1727259011250,0.0001009,2626.2,2626.1,7.27487743]
[1727259011441,0.0001009,2626.2,2626.1,8.08027743]
[1727259011650,0.0001009,2626.2,2626.1,8.00413091]
[1727259012957,0.0001009,2626.2,2626.1,8.99868529]
[1727259013209,0.8154,2626.9,2626.7,3.80698]
[1727259013337,0.8154,2626.9,2626.4,6.64820091]
[1727259013541,0.8154,2626.9,2626.5,3.80726]
[1727259013786,0.8154,2626.9,2626.7,3.80702]
[1727259014289,0.8154,2626.9,2626.8,3.80691]
[1727259014439,0.0381009,2627.0,2626.7,3.88316968]
[1727259014641,0.0381009,2627.0,2626.8,3.80684]
[1727259014855,0.0381009,2627.0,2626.7,3.88316968]
[1727259015085,0.0381009,2627.0,2626.9,3.80676]
[1727259017286,0.0381009,2627.0,2626.8,3.80689]
[1727259018390,0.0381009,2627.0,2626.5,1.37821343]
[1727259018391,0.8085,2626.9,2626.5,0.62601343]
[1727259018678,0.8085,2626.9,2626.4,3.80749]
[1727259018679,4.61534,2626.9,2626.4,3.80749]
[1727259018858,4.61534,2626.9,2626.4,4.43350343]
[1727259019070,3.80692,2626.8,2626.4,3.80749]
[1727259019271,3.80692,2626.8,2626.4,4.43350343]
[1727259019606,3.80692,2626.8,2626.4,3.80749]
[1727259019762,3.80692,2626.8,2626.4,4.43350343]
[1727259019963,3.80692,2626.8,2626.4,3.80749]
[1727259020162,3.80692,2626.8,2626.4,4.43350343]
[1727259020829,0.8085,2626.9,2626.4,4.43350343]
[1727259020830,4.61529,2626.9,2626.4,3.80749]
[1727259021104,4.61529,2626.9,2626.4,4.43461732]
[1727259021324,0.8085,2626.9,2626.4,3.80749]
[1727259021469,3.80692,2626.8,2626.4,3.80749]
[1727259022167,3.80692,2626.8,2626.4,4.43465536]
[1727259022403,3.80692,2626.8,2626.4,3.80749]
[1727259022991,3.80692,2626.8,2626.4,4.43468213]
[1727259023305,3.80692,2626.8,2626.4,3.80749]
[1727259023490,4.61527,2626.9,2626.4,3.80749]
[1727259023692,4.61527,2626.9,2626.5,0.627203]
[1727259024085,0.8085,2626.9,2626.6,3.80717]
[1727259024282,0.8085,2626.9,2626.5,4.51058312]
[1727259024623,0.8085,2626.9,2626.5,3.88338665]
[1727259024777,4.61527,2626.9,2626.5,3.88338665]
[1727259024980,4.61527,2626.9,2626.6,3.80718]
[1727259024981,0.8085,2626.9,2626.6,3.80718]
[1727259025213,0.8085,2626.9,2626.6,0.07613667]
[1727259025507,0.8085,2626.9,2626.7,3.80705]
[1727259026715,0.8085,2626.9,2626.8,6.64772091]
[1727259026876,0.0381009,2627.0,2626.9,3.80676]
[1727259027085,0.0381009,2627.0,2626.9,3.88288607]
[1727259027290,0.0381009,2627.0,2626.8,6.64772091]
[1727259027619,0.0381009,2627.0,2626.9,0.07612688]
[1727259027778,0.0381009,2627.0,2626.9,3.88288688]
[1727259029424,0.0381009,2627.0,2626.9,4.50996442]
[1727259029711,0.0381009,2627.0,2626.9,3.88288688]
[1727259031282,0.0381009,2627.0,2626.9,4.50991022]
[1727259031478,0.0381009,2627.0,2626.9,3.88288688]
[1727259031889,0.10551284,2627.0,2626.9,3.88288688]
[1727259032294,0.10551284,2627.0,2626.9,8.84391022]
[1727259032490,0.10551284,2627.0,2626.9,8.76778334]
[1727259033109,0.0381009,2627.0,2626.9,11.6673539]
[1727259033497,0.0381009,2627.8,2627.6,3.80565]
[1727259033697,0.0381009,2627.8,2627.7,2.91691495]
[1727259033924,0.0381009,2627.8,2627.7,6.72251495]
[1727259034921,0.0381009,2627.8,2627.7,7.27251495]
[1727259039506,0.0381009,2627.8,2627.7,10.27251495]
[1727259039697,0.0381009,2627.8,2627.7,10.19641091]
[1727259040079,0.0381009,2627.8,2627.7,10.96461091]
[1727259040284,0.0381009,2627.8,2627.7,11.58874465]
[1727259040532,0.0381009,2627.8,2627.7,13.68126348]
[1727259040823,0.0381009,2628.6,2627.7,13.71055727]
[1727259041127,0.0381009,2628.6,2628.5,10.96346091]
[1727259048893,0.0381009,2628.6,2628.5,6.80445]
[1727259049129,0.0381009,2628.6,2628.5,9.64526091]
[1727259049623,0.0381009,2628.6,2628.5,6.80445]
[1727259050128,0.0381009,2628.6,2628.5,7.35445]
[1727259050464,0.0381009,2628.6,2628.3,3.80461]
[1727259050747,0.0381009,2628.6,2628.4,3.80453]